fUST/lending_fUST_20250905
["ID","MTS","AMOUNT","RATE_DAILY","PERIOD"]
[383658854,1757075453214,-613.91,0.0001452,2]
[383658855,1757075453224,-533.76,0.0001452,2]
[383658856,1757075453234,-1498.59,0.0001452,2]
[383658857,1757075453245,-480.0,0.0001452,2]
[383658858,1757075453256,-953.92,0.0001452,2]
[383658859,1757075453270,-480.0,0.0001452,2]
[383658860,1757075453280,-480.0,0.0001452,2]
[383658861,1757075453290,-480.0,0.0001452,2]
[383658862,1757075453303,-480.0,0.0001452,2]
[383658863,1757075453312,-480.0,0.0001452,2]
[383658864,1757075453322,-874.79,0.0001452,2]
[383658865,1757075453332,-1760.8,0.0001452,2]
[383658866,1757075453342,-480.0,0.0001452,2]
[383658867,1757075453352,-480.0,0.0001452,2]
[383658868,1757075453361,-480.0,0.0001452,2]
[383658869,1757075453373,-480.0,0.0001452,2]
[383658870,1757075453383,-686.15,0.0001452,2]
[383658871,1757075453393,-480.0,0.0001452,2]
[383658872,1757075453403,-549.32,0.0001452,2]
[383658873,1757075453412,-480.0,0.0001452,2]
[383658874,1757075453422,-822.53,0.0001452,2]
[383658875,1757075453431,-670.03,0.0001452,2]
[383658876,1757075453440,-480.0,0.0001452,2]
[383658877,1757075453455,-1246.01,0.0001452,2]
[383658878,1757075453465,-1077.96,0.0001452,2]
[383658879,1757075453475,-4312.6,0.0001452,2]
[383658880,1757075453484,-480.0,0.0001452,2]
[383658881,1757075453494,-500.0,0.00014521,2]
[383658882,1757075453504,-362.40381106,0.00014521,2]
[383658883,1757075453515,-1000.0,0.00014521,2]
[383658884,1757075453525,-1000.0,0.00014521,2]
[383658885,1757075453535,-1004.92672541,0.00014521,2]
[383658886,1757075453544,-500.0,0.00014521,2]
[383658887,1757075453554,-449.0,0.00014558,2]
[383658888,1757075453564,-449.0,0.00014581,2]
[383658889,1757075453574,-151.0,0.000146,2]
[383658890,1757075453584,-501.13816521,0.00014621,2]
[383658891,1757075453595,-1000.0,0.00014621,2]
[383658892,1757075453604,-503.36595694,0.00014621,2]
[383658893,1757075453615,-1000.0,0.00014621,2]
[383658894,1757075453624,-204.7,0.00014656,2]
[383658895,1757075453634,-187.8399385,0.00014672,2]
[383658896,1757075453643,-151.0,0.000147,2]
[383658897,1757075453652,-74031.39839187,0.00014793,2]
[383658898,1757075453662,-244.0,0.00014794,2]
[383658899,1757075453671,-497.0,0.00014794,2]
[383658900,1757075453681,-157.0,0.00014794,2]
[383658901,1757075453691,-480.0,0.00014794,2]
[383658902,1757075453705,-480.0,0.00014794,2]
[383658903,1757075453715,-480.0,0.00014794,2]
[383658904,1757075453725,-480.0,0.00014794,2]
[383658905,1757075453734,-480.0,0.00014794,2]
[383658906,1757075453744,-480.0,0.00014794,2]
[383658907,1757075453753,-480.0,0.00014794,2]
[383658908,1757075453763,-480.0,0.00014794,2]
[383658909,1757075453773,-480.0,0.00014794,2]
[383658910,1757075453782,-480.0,0.00014794,2]
[383658911,1757075453792,-480.0,0.00014794,2]
[383658912,1757075453804,-375.68799777,0.00014794,2]
[383658913,1757075453814,-480.0,0.00014794,2]
[383658914,1757075453823,-480.0,0.00014794,2]
[383658915,1757075453832,-498.61920063,0.00014794,2]
[383658916,1757075453844,-480.0,0.00014794,2]
[383658917,1757075453854,-517.98689922,0.00014794,2]
[383658918,1757075453864,-480.0,0.00014794,2]
[383658919,1757075453873,-480.0,0.00014794,2]
[383658920,1757075453883,-480.0,0.00014794,2]
[383658921,1757075453892,-480.0,0.00014794,2]
[383658922,1757075453901,-480.0,0.00014794,2]
[383658923,1757075453911,-480.0,0.00014794,2]
[383658924,1757075453920,-480.0,0.00014794,2]
[383658925,1757075453929,-480.0,0.00014794,2]
[383658926,1757075453939,-480.0,0.00014794,2]
[383658927,1757075453953,-1223.58,0.00014794,2]
[383658928,1757075453963,-999.05,0.00014794,2]
[383658929,1757075453973,-480.0,0.00014794,2]
[383658930,1757075453982,-480.0,0.00014794,2]
[383658931,1757075453992,-671.71,0.00014794,2]
[383658932,1757075454002,-480.0,0.00014794,2]
[383658933,1757075454012,-480.0,0.00014794,2]
[383658934,1757075454022,-480.0,0.00014794,2]
[383658935,1757075454031,-678.74,0.00014794,2]
[383658936,1757075454041,-480.0,0.00014794,2]
[383658937,1757075454051,-480.0,0.00014794,2]
[383658938,1757075454060,-2044.8,0.00014794,2]
[383658939,1757075454070,-480.0,0.00014794,2]
[383658940,1757075454078,-480.0,0.00014794,2]
[383658941,1757075454087,-2092.37,0.00014794,2]
[383658942,1757075454095,-480.0,0.00014794,2]
[383658943,1757075454105,-480.0,0.00014794,2]
[383658944,1757075454114,-480.0,0.00014794,2]
[383658945,1757075454123,-994.51,0.00014794,2]
[383658946,1757075454133,-480.0,0.00014794,2]
[383658947,1757075454143,-480.0,0.00014794,2]
[383658948,1757075454153,-26539.06,0.00014794,2]
[383658949,1757075454163,-513.41739349,0.00014794,2]
[383658950,1757075454173,-480.0,0.00014794,2]
[383658951,1757075454183,-573.14,0.00014794,2]
[383658952,1757075454193,-712.09,0.00014794,2]
[383658953,1757075454207,-594.29,0.00014794,2]
[383658954,1757075454217,-480.0,0.00014794,2]
[383658955,1757075454226,-852.19,0.00014794,2]
[383658956,1757075454236,-613.91,0.00014794,2]
[383658957,1757075454246,-533.76,0.00014794,2]
[383658958,1757075454256,-1498.59,0.00014794,2]
[383658959,1757075454266,-480.0,0.00014794,2]
[383658960,1757075454275,-953.92,0.00014794,2]
[383658961,1757075454286,-480.0,0.00014794,2]
[383658962,1757075454298,-480.0,0.00014794,2]
[383658963,1757075454307,-480.0,0.00014794,2]
[383658964,1757075454317,-480.0,0.00014794,2]
[383658965,1757075454326,-614.22369371,0.00014794,2]
[383658966,1757075454336,-874.79,0.00014794,2]
[383658967,1757075454345,-1760.8,0.00014794,2]
[383658968,1757075454362,-480.0,0.00014794,2]
[383658969,1757075454372,-480.0,0.00014794,2]
[383658970,1757075454382,-480.0,0.00014794,2]
[383658971,1757075454392,-686.15,0.00014794,2]
[383658972,1757075454402,-480.0,0.00014794,2]
[383658973,1757075454411,-549.32,0.00014794,2]
[383658974,1757075454421,-480.0,0.00014794,2]
[383658975,1757075454431,-822.53,0.00014794,2]
[383658976,1757075454440,-670.03,0.00014794,2]
[383658977,1757075454453,-480.0,0.00014794,2]
[383658978,1757075454463,-1246.01,0.00014794,2]
[383658979,1757075454472,-1077.96,0.00014794,2]
[383658980,1757075454481,-4312.6,0.00014794,2]
[383658981,1757075454491,-480.0,0.00014794,2]
[383658982,1757075454500,-449.0,0.00014877,2]
[383658983,1757075454509,-168.02167146,0.000149,2]
[383658984,1757075454518,-168.02167145,0.000149,2]
[383658985,1757075454529,-168.02167145,0.000149,2]
[383658986,1757075454539,-168.0,0.00014901,2]
[383658987,1757075454549,-449.0,0.00014978,2]
[383658988,1757075454560,-449.0,0.0001498,2]
[383658989,1757075454571,-168.0,0.00014992,2]
[383658990,1757075454583,-3391.52007242,0.00015,5]
[383658991,1757075454594,-151.0,0.00015,2]
[383658992,1757075454606,-160.0,0.00015,2]
[383658993,1757075454616,-420.0,0.00015001,2]
[383658994,1757075454627,-10569.94136612,0.00015018,2]
[383658995,1757075454638,-497.0,0.00015068,2]
[383658996,1757075454649,-188.53790365,0.00015068,2]
[383658997,1757075454660,-150.0,0.00015068,2]
[383658998,1757075454670,-480.0,0.00015068,2]
[383658999,1757075454681,-480.0,0.00015068,2]
[383659000,1757075454691,-480.0,0.00015068,2]
[383659001,1757075454709,-480.0,0.00015068,2]
[383659002,1757075454719,-214.07874283,0.00015068,2]
[383659003,1757075454730,-480.0,0.00015068,2]
[383659004,1757075454739,-480.0,0.00015068,2]
[383659005,1757075454749,-480.0,0.00015068,2]
[383659006,1757075454758,-480.0,0.00015068,2]
[383659007,1757075454768,-480.0,0.00015068,2]
[383659008,1757075454777,-561.4641832,0.00015068,2]
[383659009,1757075454787,-480.0,0.00015068,2]
[383659010,1757075454797,-480.0,0.00015068,2]
[383659011,1757075454807,-480.0,0.00015068,2]
[383659012,1757075454816,-480.0,0.00015068,2]
[383659013,1757075454826,-480.0,0.00015068,2]
[383659014,1757075454835,-480.0,0.00015068,2]
[383659015,1757075454845,-480.0,0.00015068,2]
[383659016,1757075454854,-480.0,0.00015068,2]
[383659017,1757075454864,-480.0,0.00015068,2]
[383659018,1757075454874,-480.0,0.00015068,2]
[383659019,1757075454884,-480.0,0.00015068,2]
[383659020,1757075454894,-480.0,0.00015068,2]
[383659021,1757075454904,-1223.58,0.00015068,2]
[383659022,1757075454914,-999.05,0.00015068,2]
[383659023,1757075454924,-480.0,0.00015068,2]
[383659024,1757075455026,-480.0,0.00015068,2]
[383659025,1757075455036,-671.71,0.00015068,2]
[383659026,1757075455045,-480.0,0.00015068,2]
[383659027,1757075455055,-480.0,0.00015068,2]
[383659028,1757075455065,-480.0,0.00015068,2]
[383659029,1757075455074,-678.74,0.00015068,2]
[383659030,1757075455083,-480.0,0.00015068,2]
[383659031,1757075455093,-480.0,0.00015068,2]
[383659032,1757075455102,-2044.8,0.00015068,2]
[383659033,1757075455112,-480.0,0.00015068,2]
[383659034,1757075455121,-480.0,0.00015068,2]
[383659035,1757075455131,-2092.37,0.00015068,2]
[383659036,1757075455140,-480.0,0.00015068,2]
[383659037,1757075455150,-480.0,0.00015068,2]
[383659038,1757075455159,-480.0,0.00015068,2]
[383659039,1757075455169,-994.51,0.00015068,2]
[383659040,1757075455178,-480.0,0.00015068,2]
[383659041,1757075455188,-573.92125375,0.00015068,2]
[383659042,1757075455203,-26539.06,0.00015068,2]
[383659043,1757075455212,-480.0,0.00015068,2]
[383659044,1757075455222,-573.14,0.00015068,2]
[383659045,1757075455231,-712.09,0.00015068,2]
[383659046,1757075455240,-594.29,0.00015068,2]
[383659047,1757075455250,-480.0,0.00015068,2]
[383659048,1757075455263,-852.19,0.00015068,2]
[383659049,1757075455273,-613.91,0.00015068,2]
[383659050,1757075455283,-533.76,0.00015068,2]
[383659051,1757075455292,-1498.59,0.00015068,2]
[383659052,1757075455303,-480.0,0.00015068,2]
[383659053,1757075455312,-953.92,0.00015068,2]
[383659054,1757075455322,-480.0,0.00015068,2]
[383659055,1757075455332,-480.0,0.00015068,2]
[383659056,1757075455343,-480.0,0.00015068,2]
[383659057,1757075455353,-389.18633938,0.00015068,2]
[383659058,1757075455362,-874.79,0.00015068,2]
[383659059,1757075455371,-1760.8,0.00015068,2]
[383659060,1757075455380,-480.0,0.00015068,2]
[383659061,1757075455390,-480.0,0.00015068,2]
[383659062,1757075455400,-480.0,0.00015068,2]
[383659063,1757075455409,-686.15,0.00015068,2]
[383659064,1757075455419,-480.0,0.00015068,2]
[383659065,1757075455428,-549.32,0.00015068,2]
[383659066,1757075455438,-480.0,0.00015068,2]
[383659067,1757075455453,-822.53,0.00015068,2]
[383659068,1757075455464,-670.03,0.00015068,2]
[383659069,1757075455474,-480.0,0.00015068,2]
[383659070,1757075455484,-1246.01,0.00015068,2]
[383659071,1757075455494,-1077.96,0.00015068,2]
[383659072,1757075455504,-4312.6,0.00015068,2]
[383659073,1757075455514,-480.0,0.00015068,2]
[383659074,1757075455524,-1500.0,0.00015068,2]
[383659075,1757075455534,-1500.0,0.00015068,2]
[383659076,1757075455543,-500.3391918,0.00015073,2]
[383659077,1757075455553,-508.14425203,0.00015073,2]
[383659078,1757075455562,-500.0,0.00015073,2]
[383659079,1757075455571,-500.26839816,0.00015073,2]
[383659080,1757075455582,-500.0,0.00015073,2]
[383659081,1757075455592,-500.0,0.00015073,2]
[383659082,1757075455602,-500.4054744,0.00015073,2]
[383659083,1757075455612,-500.0,0.00015073,2]
[383659084,1757075455622,-579.82915608,0.00015073,2]
[383659085,1757075455633,-189.1345363,0.00015073,2]
[383659086,1757075455643,-500.0,0.00015073,2]
[383659087,1757075455653,-500.0,0.00015073,2]
[383659088,1757075455663,-500.0,0.00015073,2]
[383659089,1757075455672,-500.0,0.00015073,2]
[383659090,1757075455683,-500.0,0.00015073,2]
[383659091,1757075455692,-500.0,0.00015073,2]
[383659092,1757075455707,-500.0,0.00015073,2]
[383659093,1757075455717,-502.903483,0.00015073,2]
[383659094,1757075455726,-500.0,0.00015073,2]
[383659095,1757075455736,-500.0,0.00015073,2]
[383659096,1757075455746,-500.177271,0.00015073,2]
[383659097,1757075455756,-317.21856873,0.00015073,2]
[383659098,1757075455767,-500.53164619,0.00015073,2]
[383659099,1757075455778,-500.0,0.00015073,2]
[383659100,1757075455787,-501.09746189,0.00015073,2]
[383659101,1757075455797,-500.21160428,0.00015073,2]
[383659102,1757075455807,-500.0,0.00015073,2]
[383659103,1757075455817,-501.80252073,0.00015073,2]
[383659104,1757075455827,-500.0,0.00015073,2]
[383659105,1757075455837,-500.0,0.00015073,2]
[383659106,1757075455847,-500.0,0.00015073,2]
[383659107,1757075455857,-500.0,0.00015073,2]
[383659108,1757075455867,-500.0,0.00015073,2]
[383659109,1757075455876,-500.34060408,0.00015073,2]
[383659110,1757075455886,-527.57086927,0.00015073,2]
[383659111,1757075455896,-502.46552788,0.00015073,2]
[383659112,1757075455905,-500.0,0.00015073,2]
[383659113,1757075455915,-500.0,0.00015073,2]
[383659114,1757075455924,-500.0,0.00015073,2]
[383659115,1757075455934,-500.0,0.00015073,2]
[383659116,1757075455943,-500.95686265,0.00015073,2]
[383659117,1757075455957,-500.0,0.00015073,2]
[383659118,1757075455967,-500.0,0.00015073,2]
[383659119,1757075455976,-500.0,0.00015073,2]
[383659120,1757075455987,-500.0,0.00015073,2]
[383659121,1757075455996,-500.55085698,0.00015073,2]
[383659122,1757075456006,-500.0,0.00015073,2]
[383659123,1757075456016,-500.0,0.00015073,2]
[383659124,1757075456026,-500.0,0.00015073,2]
[383659125,1757075456036,-500.0,0.00015073,2]
[383659126,1757075456046,-500.77488192,0.00015073,2]
[383659127,1757075456056,-502.82638853,0.00015073,2]
[383659128,1757075456065,-500.0,0.00015073,2]
[383659129,1757075456075,-500.0,0.00015073,2]
[383659130,1757075456084,-500.9357312,0.00015073,2]
[383659131,1757075456094,-500.0,0.00015073,2]
[383659132,1757075456103,-426.67090978,0.00015073,2]
[383659133,1757075456112,-500.0,0.00015073,2]
[383659134,1757075456121,-506.82729725,0.00015073,2]
[383659135,1757075456131,-500.0,0.00015073,2]
[383659136,1757075456140,-506.1581339,0.00015073,2]
[383659137,1757075456150,-500.6333328,0.00015073,2]
[383659138,1757075456159,-163.04695332,0.00015073,2]
[383659139,1757075456168,-500.0,0.00015073,2]
[383659140,1757075456177,-500.0,0.00015073,2]
[383659141,1757075456187,-624.37796736,0.00015073,2]
[383659142,1757075456201,-501.27816764,0.00015073,2]
[383659143,1757075456211,-174.30168153,0.00015073,2]
[383659144,1757075456221,-500.0,0.00015073,2]
[383659145,1757075456231,-500.0,0.00015073,2]
[383659146,1757075456240,-160.57772057,0.00015073,2]
[383659147,1757075456249,-500.0,0.00015073,2]
[383659148,1757075456260,-500.0,0.00015073,2]
[383659149,1757075456269,-500.0,0.00015073,2]
[383659150,1757075456281,-300.0,0.00015095,5]
[383659151,1757075456293,-1500.0,0.00015168,2]
[383659152,1757075456305,-1500.0,0.00015168,2]
[383659153,1757075456315,-426.08730936,0.00015242,2]
[383659154,1757075456326,-1667.04137583,0.00015303,2]
[383659155,1757075456336,-497.0,0.00015342,2]
[383659156,1757075456347,-444.74811371,0.00015342,2]
[383659157,1757075456358,-480.0,0.00015342,2]
[383659158,1757075456368,-480.0,0.00015342,2]
[383659159,1757075456379,-480.0,0.00015342,2]
[383659160,1757075456389,-480.0,0.00015342,2]
[383659161,1757075456399,-480.0,0.00015342,2]
[383659162,1757075456409,-480.0,0.00015342,2]
[383659163,1757075456420,-480.0,0.00015342,2]
[383659164,1757075456430,-194.82633527,0.00015342,2]
[383659165,1757075456440,-480.0,0.00015342,2]
[383659166,1757075456457,-480.0,0.00015342,2]
[383659167,1757075456469,-480.0,0.00015342,2]
[383659168,1757075456480,-480.0,0.00015342,2]
[383659169,1757075456490,-480.0,0.00015342,2]
[383659170,1757075456500,-480.0,0.00015342,2]
[383659171,1757075456509,-480.0,0.00015342,2]
[383659172,1757075456519,-480.0,0.00015342,2]
[383659173,1757075456530,-480.0,0.00015342,2]
[383659174,1757075456540,-480.0,0.00015342,2]
[383659175,1757075456550,-480.0,0.00015342,2]
[383659176,1757075456561,-1223.58,0.00015342,2]
[383659177,1757075456571,-999.05,0.00015342,2]
[383659178,1757075456585,-480.0,0.00015342,2]
[383659179,1757075456595,-480.0,0.00015342,2]
[383659180,1757075456605,-671.71,0.00015342,2]
[383659181,1757075456615,-480.0,0.00015342,2]
[383659182,1757075456625,-480.0,0.00015342,2]
[383659183,1757075456635,-480.0,0.00015342,2]
[383659184,1757075456644,-678.74,0.00015342,2]
[383659185,1757075456654,-480.0,0.00015342,2]
[383659186,1757075456663,-480.0,0.00015342,2]
[383659187,1757075456673,-2044.8,0.00015342,2]
[383659188,1757075456683,-480.0,0.00015342,2]
[383659189,1757075456693,-480.0,0.00015342,2]
[383659190,1757075456709,-2092.37,0.00015342,2]
[383659191,1757075456719,-480.0,0.00015342,2]
[383659192,1757075456728,-480.0,0.00015342,2]
[383659193,1757075456738,-480.0,0.00015342,2]
[383659194,1757075456747,-994.51,0.00015342,2]
[383659195,1757075456758,-480.0,0.00015342,2]
[383659196,1757075456768,-26539.06,0.00015342,2]
[383659197,1757075456778,-480.0,0.00015342,2]
[383659198,1757075456788,-573.14,0.00015342,2]
[383659199,1757075456798,-712.09,0.00015342,2]
[383659200,1757075456807,-594.29,0.00015342,2]
[383659201,1757075456816,-480.0,0.00015342,2]
[383659202,1757075456826,-852.19,0.00015342,2]
[383659203,1757075456835,-613.91,0.00015342,2]
[383659204,1757075456844,-533.76,0.00015342,2]
[383659205,1757075456854,-1498.59,0.00015342,2]
[383659206,1757075456863,-480.0,0.00015342,2]
[383659207,1757075456873,-953.92,0.00015342,2]
[383659208,1757075456882,-480.0,0.00015342,2]
[383659209,1757075456892,-480.0,0.00015342,2]
[383659210,1757075456901,-480.0,0.00015342,2]
[383659211,1757075456910,-874.79,0.00015342,2]
[383659212,1757075456919,-1760.8,0.00015342,2]
[383659213,1757075456928,-480.0,0.00015342,2]
[383659214,1757075456938,-480.0,0.00015342,2]
[383659215,1757075456954,-480.0,0.00015342,2]
[383659216,1757075456964,-686.15,0.00015342,2]
[383659217,1757075456974,-480.0,0.00015342,2]
[383659218,1757075456985,-549.32,0.00015342,2]
[383659219,1757075456995,-480.0,0.00015342,2]
[383659220,1757075457006,-822.53,0.00015342,2]
[383659221,1757075457016,-670.03,0.00015342,2]
[383659222,1757075457026,-480.0,0.00015342,2]
[383659223,1757075457035,-1246.01,0.00015342,2]
[383659224,1757075457045,-1077.96,0.00015342,2]
[383659225,1757075457054,-4312.6,0.00015342,2]
[383659226,1757075457063,-480.0,0.00015342,2]
[383659227,1757075457072,-720.0,0.00015368,2]
[383659228,1757075457082,-160.0,0.00015377,2]
[383659229,1757075457091,-156.22976991,0.0001545,2]
[383659230,1757075457101,-6794.8846966,0.00015509,2]
[383659231,1757075457110,-497.0,0.00015616,2]
[383659232,1757075457119,-480.0,0.00015616,2]
[383659233,1757075457128,-480.0,0.00015616,2]
[383659234,1757075457137,-480.0,0.00015616,2]
[383659235,1757075457234,-480.0,0.00015616,2]
[383659236,1757075457244,-480.0,0.00015616,2]
[383659237,1757075457254,-480.0,0.00015616,2]
[383659238,1757075457268,-436.75620838,0.00015616,2]
[383659239,1757075457278,-480.0,0.00015616,2]
[383659240,1757075457287,-480.0,0.00015616,2]
[383659241,1757075457297,-480.0,0.00015616,2]
[383659242,1757075457308,-480.0,0.00015616,2]
[383659243,1757075457318,-480.0,0.00015616,2]
[383659244,1757075457327,-480.0,0.00015616,2]
[383659245,1757075457338,-480.0,0.00015616,2]
[383659246,1757075457348,-480.0,0.00015616,2]
[383659247,1757075457358,-480.0,0.00015616,2]
[383659248,1757075457367,-406.05964908,0.00015616,2]
[383659249,1757075457377,-480.0,0.00015616,2]
[383659250,1757075457386,-1223.58,0.00015616,2]
[383659251,1757075457396,-999.05,0.00015616,2]
[383659252,1757075457406,-480.0,0.00015616,2]
[383659253,1757075457415,-480.0,0.00015616,2]
[383659254,1757075457425,-671.71,0.00015616,2]
[383659255,1757075457434,-480.0,0.00015616,2]
[383659256,1757075457443,-480.0,0.00015616,2]
[383659257,1757075457458,-480.0,0.00015616,2]
[383659258,1757075457467,-678.74,0.00015616,2]
[383659259,1757075457476,-480.0,0.00015616,2]
[383659260,1757075457485,-480.0,0.00015616,2]
[383659261,1757075457495,-2044.8,0.00015616,2]
[383659262,1757075457504,-480.0,0.00015616,2]
[383659263,1757075457514,-192.26738363,0.00015616,2]
[383659264,1757075457523,-2092.37,0.00015616,2]
[383659265,1757075457533,-480.0,0.00015616,2]
[383659266,1757075457543,-480.0,0.00015616,2]
[383659267,1757075457552,-480.0,0.00015616,2]
[383659268,1757075457562,-994.51,0.00015616,2]
[383659269,1757075457571,-480.0,0.00015616,2]
[383659270,1757075457582,-26539.06,0.00015616,2]
[383659271,1757075457592,-480.0,0.00015616,2]
[383659272,1757075457602,-573.14,0.00015616,2]
[383659273,1757075457611,-712.09,0.00015616,2]
[383659274,1757075457621,-594.29,0.00015616,2]
[383659275,1757075457631,-480.0,0.00015616,2]
[383659276,1757075457642,-852.19,0.00015616,2]
[383659277,1757075457652,-613.91,0.00015616,2]
[383659278,1757075457661,-533.76,0.00015616,2]
[383659279,1757075457671,-1498.59,0.00015616,2]
[383659280,1757075457681,-480.0,0.00015616,2]
[383659281,1757075457691,-953.92,0.00015616,2]
[383659282,1757075457705,-480.0,0.00015616,2]
[383659283,1757075457714,-480.0,0.00015616,2]
[383659284,1757075457724,-480.0,0.00015616,2]
[383659285,1757075457734,-874.79,0.00015616,2]
[383659286,1757075457744,-1760.8,0.00015616,2]
[383659287,1757075457754,-480.0,0.00015616,2]
[383659288,1757075457764,-480.0,0.00015616,2]
[383659289,1757075457774,-686.15,0.00015616,2]
[383659290,1757075457783,-480.0,0.00015616,2]
[383659291,1757075457793,-480.0,0.00015616,2]
[383659292,1757075457803,-549.32,0.00015616,2]
[383659293,1757075457813,-480.0,0.00015616,2]
[383659294,1757075457823,-822.53,0.00015616,2]
[383659295,1757075457833,-670.03,0.00015616,2]
[383659296,1757075457843,-480.0,0.00015616,2]
[383659297,1757075457852,-1246.01,0.00015616,2]
[383659298,1757075457862,-1077.96,0.00015616,2]
[383659299,1757075457871,-4312.6,0.00015616,2]
[383659300,1757075457880,-480.0,0.00015616,2]
[383659301,1757075457890,-504.02130842,0.00015616,2]
[383659302,1757075457899,-2000.0,0.00015616,2]
[383659303,1757075457909,-388.69385758,0.00015621,2]
[383659304,1757075457918,-1000.0,0.00015621,2]
[383659305,1757075457927,-1000.0,0.00015621,2]
[383659306,1757075457936,-1000.0,0.00015621,2]
[383659307,1757075457949,-589.34476292,0.00015621,2]
[383659308,1757075457960,-1000.0,0.00015621,2]
[383659309,1757075457970,-1000.0,0.00015621,2]
[383659310,1757075457979,-1000.75973002,0.00015621,2]
[383659311,1757075457989,-1000.53445438,0.00015621,2]
[383659312,1757075457998,-173.35808123,0.00015621,2]
[383659313,1757075458008,-417.16974996,0.00015621,2]
[383659314,1757075458027,-583.48002478,0.00015621,2]
[383659315,1757075458037,-1000.0,0.00015621,2]
[383659316,1757075458046,-1000.0,0.00015621,2]
[383659317,1757075458055,-1000.81143358,0.00015621,2]
[383659318,1757075458064,-1001.1610562,0.00015621,2]
[383659319,1757075458073,-1000.0,0.00015621,2]
[383659320,1757075458083,-1000.46670361,0.00015621,2]
[383659321,1757075458093,-1000.0,0.00015621,2]
[383659322,1757075458104,-1000.0,0.00015621,2]
[383659323,1757075458114,-504.14373471,0.00015621,2]
[383659324,1757075458124,-507.84103683,0.00015621,2]
[383659325,1757075458134,-1000.0,0.00015621,2]
[383659326,1757075458144,-500.68914536,0.00015621,2]
[383659327,1757075458153,-1000.0,0.00015621,2]
[383659328,1757075458163,-1000.0,0.00015621,2]
[383659329,1757075458172,-1002.92796432,0.00015621,2]
[383659330,1757075458182,-1000.0,0.00015621,2]
[383659331,1757075458192,-500.99488063,0.00015621,2]
[383659332,1757075458206,-504.02380459,0.00015621,2]
[383659333,1757075458215,-1000.0,0.00015621,2]
[383659334,1757075458225,-501.08927134,0.00015621,2]
[383659335,1757075458234,-1001.2912488,0.00015621,2]
[383659336,1757075458244,-1000.0,0.00015621,2]
[383659337,1757075458255,-1000.0,0.00015621,2]
[383659338,1757075458265,-1000.0,0.00015621,2]
[383659339,1757075458275,-1000.0,0.00015621,2]
[383659340,1757075458286,-1001.15434846,0.00015621,2]
[383659341,1757075458297,-501.08148661,0.00015621,2]
[383659342,1757075458307,-1001.43470155,0.00015621,2]
[383659343,1757075458317,-402.15118414,0.00015621,2]
[383659344,1757075458327,-566.6536486,0.00015621,2]
[383659345,1757075458336,-1000.89792521,0.00015621,2]
[383659346,1757075458346,-500.65677418,0.00015621,2]
[383659347,1757075458356,-2000.0,0.00015716,2]
[383659348,1757075458366,-188.07802001,0.00015716,2]
[383659349,1757075458376,-194.65711884,0.00015741,7]
[383659350,1757075458386,-190.25439541,0.00015832,2]
[383659351,1757075458397,-10362.19380198,0.00015853,2]
[383659352,1757075458407,-497.0,0.0001589,2]
[383659353,1757075458417,-480.0,0.0001589,2]